Cogmind - Beta 11.1 @@@ ROGUE MODE // 2022.09.30 @ 16:45:50 Player: HeartGrenade Result: Destroyed by G-73 Enforcer with Heavy Laser Performance ------------- Evolutions (7) 3500 Regions Visited (25) 5000 Robots Destroyed (326) 1630 Value Destroyed (15185) 15185 Prototype IDs (58) 1160 Alien Tech Used (0) 0 Bonus (12406) 12406 TOTAL SCORE: 38881 Bonus ------- Triggered High Security 500 High Alert Combat Kills 4750 Follower Combat Kills 3716 Network Hubs Disabled 200 Met Data Miner 300 Met Imprinter 300 Was Imprinted 300 Met Warlord at Base 500 MAIN.C Attacked Warlord 500 Warlord Defense Kills 1880 Met R17 at Cetus 500 Friendly Fire -1040 Cogmind --------- Core Integrity 0/1300 Matter 75/300 Energy 100/100 System Corruption 12% Temperature Cool (9) Movement Core (50) Location -3/Research Parts ------- > --- POWER (2) -------- (None) > --- PROPULSION (6) --- (None) > --- UTILITY (10) ----- Machine Analyzer Enhanced Optical Array Advanced Signal Interpreter 0b10 Decoder Chip [Looter] Experimental Target Analyzer > --- WEAPON (3) ------- (None) > --- INVENTORY (5) ---- Matter Compressor (0) Long-range Tractor Beam Hacking Drone Bay (1/1) RU-N14's Throwing Claymores v3 (10) Power Sword Peak State ------------ > --- POWER ------------ Vortex Chain Reactor > --- PROPULSION ------- Heavy Treads Armored Heavy Treads Advanced Heavy Treads > --- UTILITY ---------- Improved Cooling System Huge Storage Unit Enhanced Optical Array 0b10 Decoder Chip [Looter] Experimental Target Analyzer Advanced Transmission Jammer Centrium Medium Armor Plating Centrium Medium Armor Plating Advanced Focal Shield Improved System Restoration Module > --- WEAPON ----------- Cooled Proton Cannon Heavy Linear Accelerator > --- INVENTORY -------- Particle Reactor Centrium Wheel Zionite Biocell Matter Compressor Matter Compressor Machine Analyzer Advanced Signal Interpreter Advanced Terrain Scanner Centrium Medium Armor Plating Long-range Tractor Beam Hacking Drone Bay Neutron Cannon Tri-rail Accelerator Micro-nuke Launcher RU-N14's Throwing Claymores v3 RU-N14's Throwing Claymores v3 RU-N14's Throwing Claymores v3 RU-N14's Throwing Claymores v3 Power Sword [Rating: 162] Favorites ----------- Power Micro Fission Core Engine Angular Momentum Engine Power Core Micro Fission Core Reactor Quantum Reactor Propulsion Light Treads Treads Light Treads Leg Carbon-fiber Leg Wheel Armored Huge Wheel Utility Advanced Targeting Computer Device Seismic Detector Storage Huge Storage Unit Processor Advanced Targeting Computer Hackware Hacking Suite Protection Improved Heavy Armor Plating Weapon Enhanced Autogun Energy Gun Gatling Laser Energy Cannon Advanced Plasma Cannon Ballistic Gun Enhanced Autogun Ballistic Cannon Tri-rail Accelerator Launcher Rocket Launcher Special Weapon RU-N14's Throwing Claymores v3 Slashing Weapon Falx Special Melee Weapon Advanced Datajack Build | -11 -10 -9 -9 -8 -7 -7 -7 -7 -6 -6 -6 -6 -6 -5 -5 -5 -5 -5 -4 -4 -4 -4 -4 -4 -3 ------- Run | Scr Mat Mat Min Mat Fac Low Low Zio Pro Fac Low Low Dat Pro Fac Upp Upp War Pro Fac Ext Cet Arc Hub Res Slots Evolved 14 | . . 2 . 2 2 . . . . 2 . . . . 2 . . . . 2 . . . . 2 Power 1 | . . . . . . . . . . 1 . . . . . . . . . . . . . . . Propulsion 4 | . . 1 . 1 . . . . . . . . . . . . . . . 2 . . . . . Utility 8 | . . 1 . 1 1 . . . . 1 . . . . 2 . . . . . . . . . 2 Weapon 1 | . . . . . 1 . . . . . . . . . . . . . . . . . . . . Parts Attached 286 | 3 9 7 . 16 24 14 7 6 3 16 5 8 . 9 39 6 6 13 13 8 11 7 7 8 41 Power 19 | 1 . 1 . 1 . 1 . . . 1 1 1 . 1 2 . . 1 . 2 2 1 1 . 2 Engine 8 | 1 . . . . . 1 . . . 1 1 1 . 1 1 . . . . 1 . . . . . Core 4 | . . 1 . 1 . . . . . . . . . . 1 . . . . . 1 . . . . Reactor 7 | . . . . . . . . . . . . . . . . . . 1 . 1 1 1 1 . 2 Propulsion 48 | 2 . 2 . 7 6 2 2 . . 2 . . . 1 3 . 1 2 2 2 2 1 1 4 6 Treads 40 | 2 . 2 . 7 6 1 2 . . 1 . . . 1 3 . . 2 2 . 2 . 1 4 4 Leg 1 | . . . . . . 1 . . . . . . . . . . . . . . . . . . . Wheel 7 | . . . . . . . . . . 1 . . . . . . 1 . . 2 . 1 . . 2 Hover . | . . . . . . . . . . . . . . . . . . . . . . . . . . Flight . | . . . . . . . . . . . . . . . . . . . . . . . . . . Utility 139 | . 5 4 . 5 11 5 3 2 2 11 2 5 . 4 20 5 3 6 7 3 6 5 1 4 20 Device 87 | . . 2 . 2 6 2 3 . 2 8 2 3 . 4 16 4 3 4 5 2 3 2 . 2 12 Storage 5 | . 2 . . . . . . . . 1 . . . . . . . . . . 1 . . . 1 Processor 9 | . . . . 1 1 . . . . . . 1 . . 1 . . 1 . 1 . . . . 3 Hackware 2 | . . . . . 1 . . . . . . . . . 1 . . . . . . . . . . Protection 36 | . 3 2 . 2 3 3 . 2 . 2 . 1 . . 2 1 . 1 2 . 2 3 1 2 4 Artifact . | . . . . . . . . . . . . . . . . . . . . . . . . . . Weapon 80 | . 4 . . 3 7 6 2 4 1 2 2 2 . 3 14 1 2 4 4 1 1 . 4 . 13 Energy Gun 13 | . 2 . . 2 . . 1 . . 1 1 . . 1 3 . 1 1 . . . . . . . Energy Cannon 6 | . . . . . . . . . . . . 1 . . 1 1 . . 1 . . . . . 2 Ballistic Gun 24 | . 2 . . 1 5 4 1 1 1 1 . 1 . 1 5 . . . . . . . . . 1 Ballistic Cannon 5 | . . . . . . . . . . . . . . . . . . 1 1 . . . . . 3 Launcher 10 | . . . . . 1 2 . 1 . . 1 . . 1 1 . 1 . . . . . . . 2 Special Weapon 6 | . . . . . . . . . . . . . . . . . . 1 2 . . . . . 3 Impact Weapon . | . . . . . . . . . . . . . . . . . . . . . . . . . . Slashing Weapon 14 | . . . . . 1 . . 2 . . . . . . 4 . . 1 . 1 1 . 2 . 2 Piercing Weapon . | . . . . . . . . . . . . . . . . . . . . . . . . . . Special Melee Weapon 2 | . . . . . . . . . . . . . . . . . . . . . . . 2 . . Unidentified Prototypes 13 | . . . . 1 . . . . . 2 . . . . 1 . . 4 1 . 1 1 . . 2 Corrupted Parts 1 | . . . . . . . . . . . . . . 1 . . . . . . . . . . . System Corruption 1 | . . . . . . . . . . . . . . 1 . . . . . . . . . . . Parts Lost 57 | . . . . 2 6 5 2 . . . 2 3 . 2 2 1 3 2 2 . . 1 . 2 22 Power 8 | . . . . 1 . 1 . . . . 2 . . . . . . . 1 . . . . . 3 Propulsion 16 | . . . . . 4 2 . . . . . . . 2 . . 1 1 . . . 1 . 1 4 Utility 21 | . . . . . 2 1 . . . . . 3 . . 1 1 . 1 1 . . . . . 11 Weapon 12 | . . . . 1 . 1 2 . . . . . . . 1 . 2 . . . . . . 1 4 Highest Loss Streak 13 | . . . . 1 2 5 1 . . . 2 3 . 1 1 1 3 2 3 . . 1 . 2 13 To Critical Strikes 1 | . . . . . . . . . . . . . . . . . . . . . . . . 1 . Average Slot Usage (%) 88 | . 90 95 100 98 98 92 98 100 100 85 83 83 93 86 86 88 86 82 86 85 87 82 78 76 74 Engine 4 | . 14 2 . . . 3 7 7 7 8 10 8 13 13 8 5 5 2 . 4 . . . . . Core 3 | . . 8 11 8 7 3 . . . . . . . . 2 5 5 5 5 3 4 5 . . . Reactor 1 | . . . . . . . . . . . . . . . . . . 2 4 1 5 5 9 10 7 Treads 19 | . 28 29 33 36 29 21 27 30 30 18 13 13 13 6 8 11 11 11 16 15 17 15 20 20 13 Wheel 2 | . . . . . . . . . . 3 6 6 6 6 5 5 4 4 . 7 6 3 . . . Device 9 | . . 10 11 9 10 3 7 7 7 5 6 8 13 13 12 11 11 8 16 12 10 10 5 5 14 Storage 6 | . 12 11 11 9 7 7 7 7 7 6 6 6 6 6 5 5 5 5 5 5 5 5 5 5 3 Processor 13 | . . . . 1 10 15 15 15 15 13 13 11 13 13 17 17 17 19 17 17 21 21 21 21 17 Protection 7 | . 12 11 11 14 7 10 7 7 7 6 6 6 6 6 5 5 5 5 5 5 5 5 5 5 6 Energy Gun 5 | . 13 22 22 17 1 . 3 7 7 5 8 6 6 7 5 5 5 1 . . . . . . . Ballistic Gun 6 | . 7 . . . 20 20 19 9 13 13 7 8 13 8 6 5 5 . . . . . . . . Ballistic Cannon 1 | . . . . . . . . . . . . . . . . . . 4 5 5 5 5 5 4 3 Slashing Weapon 1 | . . . . . . 1 . 4 1 . . . . . . 2 . 3 . 4 5 5 2 5 3 Naked Turns . | . . . . . . . . . . . . . . . . . . . . . . . . . . Heaviest Build 175 | 5 54 59 59 62 65 63 64 79 65 123 123 139 135 140 141 135 135 142 141 128 139 146 153 154 175 Greatest Support 210 | 3 40 60 60 80 82 82 82 82 82 82 28 28 28 28 28 28 28 124 124 124 190 190 195 195 210 Greatest Overweight (x) 7 | 1 1 1 . . . 1 1 . . 4 4 4 4 4 5 4 4 5 1 7 4 . . 1 6 Average Overweight (x) 1 | . . . . . . . . . . 2 4 4 4 4 4 4 4 4 . 2 2 . . . . Largest Inventory Capacity 25 | 5 20 20 20 20 20 20 20 20 20 25 25 25 25 25 25 25 25 25 25 25 25 25 25 25 25 Average Capacity 22 | 5 14 20 20 20 20 20 20 20 20 22 25 25 25 25 25 25 25 25 25 25 25 25 25 25 24 Most Carried 25 | 3 16 20 20 20 20 19 20 20 20 25 25 25 23 25 25 25 25 25 23 25 25 25 25 25 25 Average Carried 21 | 2 8 17 20 19 19 17 18 19 19 21 24 24 23 24 24 23 24 24 20 23 24 24 24 25 23 Final Capacity 25 | 5 20 20 20 20 20 20 20 20 20 25 25 25 25 25 25 25 25 25 25 25 25 25 25 25 5 Final Carried 25 | 3 14 20 20 20 19 18 19 20 19 25 25 23 23 24 25 25 22 23 21 25 25 25 25 25 5 Class Distribution -------------------- 39% | Mutant 27% | Scavenger-Mutant 17% | Scavenger-Gunner 5% | Gunner 4% | Skirmisher 3% | Tank Dominant Class ---------------- Mutant | -10/Materials Mutant | -9/Materials Mutant | -9/Mines Scavenger-Mutant | -8/Materials Scavenger-Gunner | -7/Factory Gunner | -7/Lower Caves Scavenger-Gunner | -7/Lower Caves Scavenger-Mutant | -7/Zion Scavenger-Gunner | -6/Proximity Caves Gunner | -6/Factory Mutant | -6/Lower Caves Mutant | -6/Lower Caves Skirmisher | -6/Data Miner Mutant | -5/Proximity Caves Mutant | -5/Factory Mutant | -5/Upper Caves Mutant | -5/Upper Caves Mutant | -5/Warlord Scavenger-Gunner | -4/Proximity Caves Mutant | -4/Factory Commander-Mutant | -4/Extension Scavenger-Mutant | -4/Cetus Scavenger-Mutant | -4/Archives Scavenger-Mutant | -4/Hub_04(d) Scavenger-Mutant | -3/Research Resources | -11 -10 -9 -9 -8 -7 -7 -7 -7 -6 -6 -6 -6 -6 -5 -5 -5 -5 -5 -4 -4 -4 -4 -4 -4 -3 ----------- Run | Scr Mat Mat Min Mat Fac Low Low Zio Pro Fac Low Low Dat Pro Fac Upp Upp War Pro Fac Ext Cet Arc Hub Res Matter Collected 8880 | 196 211 453 . 155 751 525 312 10 110 690 142 134 . 163 1030 154 55 508 375 400 342 249 100 144 1671 Remotely 703 | . . . . . . . . . . . . . . . . . . 454 108 . . . . . 141 Salvage Created 11641 | . 310 523 39 919 969 340 225 . 62 656 97 153 . 259 1192 203 88 414 577 180 698 106 70 476 3085 Parts 499 | . 24 30 5 58 38 14 13 . 1 25 6 8 . 9 57 8 9 15 12 7 32 1 6 29 92 Haulers Intercepted 10 | . 1 2 . 4 . . . . . . . . . . 1 . . . . . . . . 2 . Recyclers Shooed 8 | . . . . 1 . . . . . 1 . . . . 1 . . . . 1 . . . . 4 Parts Field Recycled . | . . . . . . . . . . . . . . . . . . . . . . . . . . Retrieved Matter . | . . . . . . . . . . . . . . . . . . . . . . . . . . Parts Self-Destructed 66 | . . . . . . 7 12 . 3 . 6 8 . 5 . 10 2 . 13 . . . . . . Prevented 6 | . . . . . . . . . 2 . . . . 1 . 3 . . . . . . . . . Kills | -11 -10 -9 -9 -8 -7 -7 -7 -7 -6 -6 -6 -6 -6 -5 -5 -5 -5 -5 -4 -4 -4 -4 -4 -4 -3 ------- Run | Scr Mat Mat Min Mat Fac Low Low Zio Pro Fac Low Low Dat Pro Fac Upp Upp War Pro Fac Ext Cet Arc Hub Res Combat Hostiles Destroyed 277 | . 10 12 3 20 20 11 5 . 1 11 5 5 . 9 19 6 9 13 18 3 8 3 . 4 82 Melee 3 | . . . . . . . . . . . . . . . . . . . . . 1 . . 1 1 Guns 119 | . 10 12 3 20 17 3 5 . 1 11 3 5 . 4 18 5 2 . . . . . . . . Cannons 87 | . . . . . . . . . . . . . . . 1 1 . 9 8 3 7 3 . 3 52 AOE 67 | . . . . . 3 8 . . . . 2 . . 4 . . 7 4 10 . . . . . 29 Classes Destroyed 24 | . 4 5 . 2 2 . . . . 1 1 1 . . . . . 3 . . 1 . . 1 3 Worker 8 | . . . . 2 . . . . . . . . . . . . . . . . . . . 2 4 Builder 12 | . . 1 . . . . . . . . . . . . 1 . . . . 2 . . . 6 2 Tunneler 3 | . 2 . . . . . . . . . . . . . 1 . . . . . . . . . . Hauler 10 | . 1 2 . 4 . . . . . . . . . . 1 . . . . . . . . 2 . Recycler 8 | . . . . 2 1 . . . . 1 . . . . 1 . . . . . 1 . . . 2 Minesweeper 1 | . . . . . . . . . . . . 1 . . . . . . . . . . . . . Mechanic 2 | . . . . . . . . . . . . . . . . . . . . . . . . . 2 Operator 4 | . . . . . . . . . . 1 . . . . . . . . . . 1 . 2 . . Watcher 8 | . . 1 . 2 . . . . . . . . . . . . . . . . 1 1 . . 3 Swarmer 63 | . 6 . 3 7 . 5 4 . . 3 4 4 . 5 4 4 9 5 . . . . . . . Saboteur 5 | . . . . . . . . . . . . . . . . . . . . . . . . 1 4 Grunt 100 | . 4 7 . 7 12 2 . . . 6 . . . 2 4 . . 2 8 2 3 . . 1 40 Brawler 14 | . . 1 . 1 . 2 . . . 1 . . . 1 . . . . 5 . . . . . 3 Duelist 10 | . . 1 . 1 . . . . . . . . . . . . . . 2 . . . . . 6 Protector 3 | . . . . . . . . . . . . . . . . . . . . . . . . . 3 Sentry 24 | . . 3 . 4 5 2 1 . 1 . . . . . 3 . . . 1 . 2 . . . 2 Demolisher 1 | . . . . . . . . . . . . . . . . . . . . . 1 . . . . Specialist 1 | . . . . . . . . . . . . . . . . . . 1 . . . . . . . Hunter 21 | . . . . . 2 . . . . . . . . 1 2 2 . . 2 . . . . 2 10 Programmer 24 | . . . . . 1 . . . . 1 . 1 . . 6 . . . . 1 . . . . 14 Behemoth 2 | . . . . . . . . . . . 1 . . . . . . . . . 1 . . . . Cetus Guard 3 | . . . . . . . . . . . . . . . . . . . . . . 3 . . . Investigator 1 | . . . . . . . . . . . . . . . . . . . . . . . . . 1 Striker 1 | . . . . . . . . . . . . . . . . . . 1 . . . . . . . Executioner 4 | . . . . . . . . . . . . . . . . . . 4 . . . . . . . Packrat 1 | . . . . . . . 1 . . . . . . . . . . . . . . . . . . Thug 1 | . . . . . . . . . . . . . . . . . . 1 . . . . . . . Butcher 1 | . . . . . . . . . . . . . . . . . . . . . 1 . . . . Guerrilla 1 | . . . . . . . . . . . . . . . . . . . . . 1 . . . . Best Kill Streak 36 | . 3 3 3 4 5 10 4 . 1 3 2 4 . 5 4 6 8 7 13 3 2 2 1 8 36 Combat Bots Only 32 | . 3 3 3 3 5 10 4 . 1 3 2 4 . 5 4 6 8 7 13 3 2 2 . 2 32 Max Kills in Single Turn 7 | . 1 1 1 2 3 3 2 . 1 1 1 1 . 2 2 1 3 4 5 1 2 2 1 7 4 Gunslinging 1 | . . . . 1 1 . 1 . . . . . . . . . . . . . . . . . . Exploded 5 | . . . . . 3 3 . . . . 1 . . 2 . . 3 3 5 . . . . . 3 Melee 1 | . . . . . . . . . . . . . . . . . . . . . 1 . . 1 1 Uniques/NPCs Destroyed . | . . . . . . . . . . . . . . . . . . . . . . . . . . Combat | -11 -10 -9 -9 -8 -7 -7 -7 -7 -6 -6 -6 -6 -6 -5 -5 -5 -5 -5 -4 -4 -4 -4 -4 -4 -3 -------- Run | Scr Mat Mat Min Mat Fac Low Low Zio Pro Fac Low Low Dat Pro Fac Upp Upp War Pro Fac Ext Cet Arc Hub Res Damage Taken 20665 | . 295 605 43 787 1351 809 135 . 29 653 532 364 . 374 1775 508 359 1714 820 69 471 41 74 786 8071 Core 2505 | . 71 81 8 47 122 93 . . 1 63 75 18 . 7 210 26 18 258 67 . . . . 30 1310 Absorbed by Shields 1399 | . . . . . 64 . . . 24 28 . 40 . 112 155 112 . . 175 25 170 15 27 . 452 Reduced by Siege Mode 399 | . . . . . . . . . . . . . . . . . . . . . . . . . 399 Redirected to Shielding 22 | . . . . . . 22 . . . . . . . . . . . . . . . . . . . Regen/Repaired (Parts) 930 | . . . . . . . . 646 . . . . . . . . . . . 284 . . . . . Core Remaining (%) 78 | 100 71 . 77 91 . . . . 69 . . . . 80 . . . . 42 . . . . 97 . Volleys Fired 739 | . 26 34 4 60 53 18 7 . 5 38 15 21 . 21 68 14 20 37 27 8 29 23 5 18 188 Largest 3 | . 2 2 2 2 3 3 3 . 3 3 3 3 . 3 3 3 2 1 2 1 1 1 1 1 2 Hottest 203 | . 130 130 130 130 155 83 130 . 130 130 185 130 . 185 203 203 105 60 150 60 60 60 60 60 132 Shots Fired 1274 | . 50 68 7 120 153 40 22 . 13 92 32 35 . 54 177 31 33 37 37 8 29 23 5 18 190 Gun 880 | . 50 68 7 120 151 33 22 . 13 92 28 27 . 50 165 28 26 . . . . . . . . Cannon 338 | . . . . . . . . . . . . 8 . . 12 3 1 35 34 8 29 23 5 18 162 Launcher 31 | . . . . . 2 7 . . . . 4 . . 4 . . 6 . . . . . . . 8 Special 25 | . . . . . . . . . . . . . . . . . . 2 3 . . . . . 20 Kinetic 802 | . 40 . . . 139 33 21 . 10 76 11 14 . 28 103 14 13 35 26 8 29 23 5 18 156 Thermal 410 | . 10 68 7 120 12 . 1 . 3 16 17 21 . 22 74 17 14 . 8 . . . . . . Explosive 56 | . . . . . 2 7 . . . . 4 . . 4 . . 6 2 3 . . . . . 28 Electromagnetic 6 | . . . . . . . . . . . . . . . . . . . . . . . . . 6 Robot Hit Streak 32 | . 7 15 4 12 31 18 8 . 20 23 28 10 . 20 22 6 5 11 15 6 10 19 30 11 32 Robot Miss Streak 9 | . 5 6 5 9 3 1 2 . . 6 2 4 . 4 5 3 4 4 5 3 3 5 1 4 5 Penetration Max 1 | . . . . . . . . . . . . . . . . . . . . . . . . . 1 Secondary Targets 8 | . . . . 3 3 . 1 . . . . . . . 1 . . . . . . . . . . Max Gunslinging Chain 1 | . . . . 1 1 . 1 . . . . . . . 1 . . . . . . . . . . Shots Hit Robots 1071 | . 37 64 7 111 123 34 14 . 13 65 25 20 . 45 135 25 19 31 30 10 32 20 12 19 180 Core Hits 899 | . 28 76 7 148 57 19 8 . 4 37 17 12 . 23 76 14 12 28 38 4 26 22 6 21 216 Critical Kills 5 | . . . . . 1 1 1 . . 2 . . . . . . . . . . . . . . . Critical Parts Destroyed 9 | . . . . . 3 . 1 . . 4 . . . . 1 . . . . . . . . . . Critical Strikes 96 | . . . . . 5 1 2 . 1 6 . . . . 1 . . 9 9 1 4 2 1 4 50 Destroy 16 | . . . . . 5 1 2 . 1 6 . . . . 1 . . . . . . . . . . Blast 68 | . . . . . . . . . . . . . . . . . . 8 8 1 4 2 1 4 40 Corrupt 1 | . . . . . . . . . . . . . . . . . . . . . . . . . 1 Sever 11 | . . . . . . . . . . . . . . . . . . 1 1 . . . . . 9 Melee Attacks 56 | . . . . . 2 . . 1 3 . . . . . 9 . . 5 . 6 5 . 7 4 14 Impact . | . . . . . . . . . . . . . . . . . . . . . . . . . . Slashing 51 | . . . . . 2 . . 1 3 . . . . . 9 . . 5 . 6 5 . 2 4 14 Piercing . | . . . . . . . . . . . . . . . . . . . . . . . . . . Sneak Attacks 17 | . . . . . . . . . . . . . . . 1 . . . . 3 3 . 7 2 1 Combat Hostiles . | . . . . . . . . . . . . . . . . . . . . . . . . . . Follow-up Attacks . | . . . . . . . . . . . . . . . . . . . . . . . . . . Damage Inflicted 46937 | . 463 829 68 1451 2445 1191 252 . 284 1222 754 415 . 1327 2876 464 985 2373 3278 628 2125 1317 607 1782 19801 Guns 12254 | . 463 829 68 1451 2140 457 252 . 284 1222 615 415 . 754 2596 402 306 . . . . . . . . Cannons 17484 | . . . . . . . . . . . . . . . 200 62 . 1683 1256 376 1777 1317 357 820 9636 Explosions 14527 | . . . . . 305 734 . . . . 139 . . 573 . . 679 589 1897 . . . . 770 8841 Melee 1491 | . . . . . . . . . . . . . . . 80 . . . . 252 348 . 250 192 369 Ramming . | . . . . . . . . . . . . . . . . . . . . . . . . . . Kinetic 23261 | . 372 . . . 1941 457 242 . 184 917 161 148 . 327 1303 152 143 1683 1147 376 1777 1317 357 820 9437 Thermal 6342 | . 91 829 68 1451 199 . 10 . 100 305 454 267 . 427 1493 312 163 . 109 . . . . 64 . Explosive 13757 | . . . . . 305 734 . . . . 139 . . 573 . . 679 589 1897 . . . . . 8841 Electromagnetic 905 | . . . . . . . . . . . . . . . . . . . . . . . . 706 199 Impact . | . . . . . . . . . . . . . . . . . . . . . . . . . . Slashing 2672 | . . . . . . . . . . . . . . . 80 . . 101 125 252 348 . 250 192 1324 Piercing . | . . . . . . . . . . . . . . . . . . . . . . . . . . Highest Corruption 12 | . . . . . 3 3 3 3 . . . . . 1 3 . . 5 5 . . . . 2 12 Average Corruption 3 | . . . . . 2 3 3 3 . . . . . 1 1 . . 5 5 . . . . 1 4 Corruption Purged 12 | . . . . . . . . . . . . . . . 5 . . . . . . . . . 7 Corruption Blocked 21 | . . . . . . . . . . . . . . . 2 . . 19 . . . . . . . Effects 94 | . . . . . 14 8 10 1 . . . . . . 8 . . 1 22 . . . . 5 25 Message Errors 24 | . . . . . 3 3 2 1 . . . . . . 3 . . 1 5 . . . . 1 5 Matter Fused 23 | . . . . . 3 1 1 . . . . . . . 3 . . . 7 . . . . 1 7 Heat Flow Errors 20 | . . . . . 3 2 3 . . . . . . . 1 . . . 5 . . . . 1 5 Energy Discharges 3 | . . . . . 1 . 2 . . . . . . . . . . . . . . . . . . Parts Rejected 1 | . . . . . . . . . . . . . . . . . . . . . . . . 1 . Data Loss (minor) 14 | . . . . . 3 1 1 . . . . . . . . . . . 4 . . . . . 5 Data Loss (major) 4 | . . . . . . 1 . . . . . . . . . . . . 1 . . . . 1 1 Misfires 2 | . . . . . . . 1 . . . . . . . 1 . . . . . . . . . . Alerts 1 | . . . . . . . . . . . . . . . . . . . . . . . . . 1 Weapon Failures 2 | . . . . . 1 . . . . . . . . . . . . . . . . . . . 1 Overload Shots . | . . . . . . . . . . . . . . . . . . . . . . . . . . Overflow Damage 1490 | . . . . . . 58 . . . . . . . 89 58 . 74 40 50 137 46 . 60 63 815 Projectiles 562 | . . . . . . . . . . . . . . . 8 . . 40 22 15 . . . 11 466 Explosions 600 | . . . . . . 58 . . . . . . . 89 . . 74 . 28 . . . . 52 299 Melee 328 | . . . . . . . . . . . . . . . 50 . . . . 122 46 . 60 . 50 Knockbacks 120 | . . . . . . . . . . . . . . . . . . 10 11 1 7 . . 8 83 Impact . | . . . . . . . . . . . . . . . . . . . . . . . . . . Kinetic 104 | . . . . . . . . . . . . . . . . . . 9 11 1 7 . . 8 68 Secondary 16 | . . . . . . . . . . . . . . . . . . 1 . . . . . . 15 Self-Inflicted Damage 194 | . . . . . . . . . . . 18 . . . 75 . . . . . . . . 101 . Shots 6 | . . . . . . . . . . . 1 . . . 3 . . . . . . . . 2 . Rammed . | . . . . . . . . . . . . . . . . . . . . . . . . . . Targets Rammed . | . . . . . . . . . . . . . . . . . . . . . . . . . . Kicked . | . . . . . . . . . . . . . . . . . . . . . . . . . . Crushed . | . . . . . . . . . . . . . . . . . . . . . . . . . . Highest Temperature 331 | . 169 284 102 270 250 129 263 . 211 209 192 288 . 308 321 324 197 204 275 54 72 120 42 312 331 Average Temperature 84 | . 47 83 47 83 92 51 74 . 107 80 118 103 . 127 109 139 96 56 116 23 23 53 20 78 74 Received Heat Transfer 3496 | . 117 231 . 315 531 186 12 . 3 166 48 . . 135 134 . . 114 144 6 66 . 12 148 1128 Effects 15 | . . . . . 1 . . . . . . 2 . 3 3 . . 3 . . . . . . 3 Energy Bleed 3 | . . . . . 1 . . . . . . . . 1 1 . . . . . . . . . . Interference 12 | . . . . . . . . . . . . 2 . 2 2 . . 3 . . . . . . 3 Siege Activations 11 | . . . . . . . . . . . . . . . . . . . . . . . . . 11 Total Turns 210 | . . . . . . . . . . . . . . . . . . . . . . . . . 210 Longest Duration 45 | . . . . . . . . . . . . . . . . . . . . . . . . . 45 Robots Corrupted 1 | . . . . . . . . . . . . . . . . . . . . . . . . 1 . Combat Hostiles . | . . . . . . . . . . . . . . . . . . . . . . . . . . Parts Fried 6 | . . . . . . . . . . . . . . . . . . . . . . . . 5 1 Impact Corruptions 2 | . . . . . . . . . . . . . . . . . . . . . . . . . 2 Robots Melted 1 | . . . . . . . . . . . . . . 1 . . . . . . . . . . . Combat Hostiles 1 | . . . . . . . . . . . . . . 1 . . . . . . . . . . . Parts Melted 23 | . . 2 . 1 . . . . 1 . 1 2 . 3 8 2 . 3 . . . . . . . Heat Transferred 10839 | . 110 1020 80 1850 245 . 25 . 225 700 950 575 . 975 3125 675 272 . . . . . . 12 . Parts Sabotaged 6 | . . . . . . . . . . . . . . . . . . . 4 . . . . 2 . Parts Stolen . | . . . . . . . . . . . . . . . . . . . . . . . . . . Parts Stripped . | . . . . . . . . . . . . . . . . . . . . . . . . . . Power Chain Reactions 2 | . . . . . . . . . . . . . . . 1 . . . . . . . . 1 . Missiles Intercepted . | . . . . . . . . . . . . . . . . . . . . . . . . . . Alert | -11 -10 -9 -9 -8 -7 -7 -7 -7 -6 -6 -6 -6 -6 -5 -5 -5 -5 -5 -4 -4 -4 -4 -4 -4 -3 ------- Run | Scr Mat Mat Min Mat Fac Low Low Zio Pro Fac Low Low Dat Pro Fac Upp Upp War Pro Fac Ext Cet Arc Hub Res Peak Influence 2766 | . 160 277 120 487 370 . . . . 200 . . . . 452 . . . . 281 803 833 488 1272 2766 Initial 657 | . . 3 50 . 191 . . . . . . . . . . . . . . 163 92 386 333 48 657 Average 328 | . 73 137 59 283 152 . . . . 41 . . . . 184 . . . . 127 290 615 371 489 1130 Maximum Alert Level 5 | . . 1 . 2 1 . . . . 1 . . . . 2 . . . . 1 3 3 2 4 5 Low Security (%) 49 | 100 100 63 100 23 61 . . . . 98 . . . . 55 . . . . 64 52 . 4 27 . Level 1 24 | . . 36 . 45 38 . . . . 1 . . . . 38 . . . . 35 25 9 49 34 . Level 2 9 | . . . . 31 . . . . . . . . . . 6 . . . . . 10 41 45 14 4 Level 3 10 | . . . . . . . . . . . . . . . . . . . . . 11 48 . 6 61 Level 4 3 | . . . . . . . . . . . . . . . . . . . . . . . . 17 20 Level 5 . | . . . . . . . . . . . . . . . . . . . . . . . . . 2 High Security 1 | . . . . . . . . . . . . . . . . . . . . . . . . . 11 Max Security . | . . . . . . . . . . . . . . . . . . . . . . . . . . Squads Dispatched 72 | . 1 2 . 5 13 . . . . 2 . . . . 13 . . . 1 3 2 . . 7 23 Investigation 13 | . . . . 1 5 . . . . . . . . . 3 . . . . . 1 . . 1 2 Extermination 10 | . . . . . 2 . . . . 1 . . . . 3 . . . . 2 . . . . 2 Reinforcement 17 | . 1 2 . 1 1 . . . . 1 . . . . 3 . . . . 1 . . . 4 3 Assault 20 | . . . . . . . . . . . . . . . 1 . . . 1 . 1 . . 1 16 Garrison 12 | . . . . 3 5 . . . . . . . . . 3 . . . . . . . . 1 . Intercept . | . . . . . . . . . . . . . . . . . . . . . . . . . . Searches Triggered . | . . . . . . . . . . . . . . . . . . . . . . . . . . Data Miner Redirects 5 | . . . . . . . . . . . . . . . 3 . . . . . . . . . 2 Construction Impeded 2 | . . . . . . . . . . . . . . . . . . . . 1 . . . 1 . Haulers Reinforced 1 | . . . . . . . . . . . . . . . 1 . . . . . . . . . . Active Scanning Responses . | . . . . . . . . . . . . . . . . . . . . . . . . . . Cargo Convoy Interrupts . | . . . . . . . . . . . . . . . . . . . . . . . . . . Stealth | -11 -10 -9 -9 -8 -7 -7 -7 -7 -6 -6 -6 -6 -6 -5 -5 -5 -5 -5 -4 -4 -4 -4 -4 -4 -3 --------- Run | Scr Mat Mat Min Mat Fac Low Low Zio Pro Fac Low Low Dat Pro Fac Upp Upp War Pro Fac Ext Cet Arc Hub Res Distress Signals 18 | . 1 1 . 4 . . . . . . . . . . 1 . . . . 1 1 2 . 4 3 Communications Jammed 132 | . . . . . . . . . . . . . . . . . . . . . . . . . 132 Distress Signals 129 | . . . . . . . . . . . . . . . . . . . . . . . . . 129 Times Spotted 494 | . 18 19 3 35 22 11 5 . 2 16 7 5 . 10 29 6 9 46 20 10 23 16 2 37 143 Peak Tracking Total 14 | . 5 4 3 5 4 9 4 . 1 4 3 4 . 5 4 4 5 14 10 4 6 5 1 10 14 Tactical Retreats 19 | . . . . 2 . . . . . 3 1 . . . 1 . . 5 . . . . . 1 6 Traps | -11 -10 -9 -9 -8 -7 -7 -7 -7 -6 -6 -6 -6 -6 -5 -5 -5 -5 -5 -4 -4 -4 -4 -4 -4 -3 ------- Run | Scr Mat Mat Min Mat Fac Low Low Zio Pro Fac Low Low Dat Pro Fac Upp Upp War Pro Fac Ext Cet Arc Hub Res Traps Triggered 10 | . . . . . 4 . . . . . . . . . 2 . . . . . . . . 4 . Indirectly 4 | . . . . . . . . . . . . . . . . . . . . . . . . 4 . Trap Hack Attempts . | . . . . . . . . . . . . . . . . . . . . . . . . . . Triggered . | . . . . . . . . . . . . . . . . . . . . . . . . . . Disarmed . | . . . . . . . . . . . . . . . . . . . . . . . . . . Reprogrammed . | . . . . . . . . . . . . . . . . . . . . . . . . . . Reused . | . . . . . . . . . . . . . . . . . . . . . . . . . . Traps Extracted . | . . . . . . . . . . . . . . . . . . . . . . . . . . Installed . | . . . . . . . . . . . . . . . . . . . . . . . . . . Triggered 17 | . . . . . . . . . 1 . . . . . . . . 16 . . . . . . . Machines | -11 -10 -9 -9 -8 -7 -7 -7 -7 -6 -6 -6 -6 -6 -5 -5 -5 -5 -5 -4 -4 -4 -4 -4 -4 -3 ---------- Run | Scr Mat Mat Min Mat Fac Low Low Zio Pro Fac Low Low Dat Pro Fac Upp Upp War Pro Fac Ext Cet Arc Hub Res Machines Disabled 26 | . . . . 1 . . . . . . . . . . 4 . . . . 3 2 5 1 9 1 Max in Single Turn 4 | . . . . . . . . . . . . . . . 4 . . . . . . 1 . 3 1 Garrison Access 2 | . . . . 1 . . . . . . . . . . . . . . . . . . . . 1 Network Hub 1 | . . . . . . . . . . . . . . . . . . . . . . . . 1 . Machines Sabotaged . | . . . . . . . . . . . . . . . . . . . . . . . . . . Garrisons Compromised . | . . . . . . . . . . . . . . . . . . . . . . . . . . Overloaded Fab Kills . | . . . . . . . . . . . . . . . . . . . . . . . . . . Hacking | -11 -10 -9 -9 -8 -7 -7 -7 -7 -6 -6 -6 -6 -6 -5 -5 -5 -5 -5 -4 -4 -4 -4 -4 -4 -3 --------- Run | Scr Mat Mat Min Mat Fac Low Low Zio Pro Fac Low Low Dat Pro Fac Upp Upp War Pro Fac Ext Cet Arc Hub Res Machines Accessed 49 | . 5 3 . 7 11 1 . . . 4 . 2 3 . 4 1 . 3 . 2 . . . . 3 Terminals 18 | . 5 3 . 4 5 . . . . . . . . . . . . . . 1 . . . . . Fabricators 8 | . . . . . 2 . . . . 2 . . . . 2 . . . . . . . . . 2 Repair Stations 1 | . . . . . . . . . . . . . . . . . . . . 1 . . . . . Recycling Units 3 | . . . . . 1 . . . . 1 . . . . 1 . . . . . . . . . . Scanalyzers 4 | . . . . 2 1 . . . . 1 . . . . . . . . . . . . . . . Garrison Access 5 | . . . . 1 2 . . . . . . . . . 1 . . . . . . . . . 1 Total Hacks 141 | . 12 11 . 20 21 1 . . . 9 . 6 24 . 10 1 . 18 . 3 . . . . 5 Successful 95 | . 7 7 . 14 4 1 . . . 6 . 6 24 . 3 1 . 18 . 3 . . . . 1 Failed 44 | . 4 3 . 6 17 . . . . 3 . . . . 7 . . . . . . . . . 4 Catastrophic 11 | . 1 . . 1 6 . . . . . . . . . 2 . . . . . . . . . 1 Database Lockouts 2 | . 1 1 . . . . . . . . . . . . . . . . . . . . . . . Manual 98 | . 9 11 . 8 2 . . . . 16 . . . . 17 . . 1 . 6 8 1 . 3 16 Terminals 46 | . 12 11 . 11 11 . . . . . . . . . . . . . . 1 . . . . . Fabricators 17 | . . . . . 3 . . . . 4 . . . . 6 . . . . . . . . . 4 Repair Stations 2 | . . . . . . . . . . . . . . . . . . . . 2 . . . . . Recycling Units 6 | . . . . . 1 . . . . 3 . . . . 2 . . . . . . . . . . Scanalyzers 10 | . . . . 7 1 . . . . 2 . . . . . . . . . . . . . . . Garrison Access 10 | . . . . 2 5 . . . . . . . . . 2 . . . . . . . . . 1 Terminal Hacks 66 | . 5 6 . 2 2 1 . . . . . 6 24 . . 1 . 18 . 1 . . . . . Record 11 | . . . . . . . . . . . . 5 6 . . . . . . . . . . . . Part Schematic 12 | . . 2 . . . . . . . . . . 10 . . . . . . . . . . . . Robot Schematic 5 | . . . . . . . . . . . . . 5 . . . . . . . . . . . . Robot Analysis 4 | . 2 2 . . . . . . . . . . . . . . . . . . . . . . . Prototype ID Bank 21 | . . . . . . . . . . . . . 3 . . . . 18 . . . . . . . Open Door 4 | . . . . . . 1 . . . . . 1 . . . 1 . . . 1 . . . . . Branch Access Points 2 | . . . . 1 1 . . . . . . . . . . . . . . . . . . . . Terminal Index 1 | . . . . . 1 . . . . . . . . . . . . . . . . . . . . Unreport Threat 1 | . 1 . . . . . . . . . . . . . . . . . . . . . . . . Locate Traps 1 | . . 1 . . . . . . . . . . . . . . . . . . . . . . . Zone Layout 4 | . 2 1 . 1 . . . . . . . . . . . . . . . . . . . . . Fabricator Hacks 6 | . . . . . 1 . . . . 2 . . . . 3 . . . . . . . . . . Network Status 3 | . . . . . 1 . . . . 1 . . . . 1 . . . . . . . . . . Load Schematic 1 | . . . . . . . . . . . . . . . 1 . . . . . . . . . . Build 2 | . . . . . . . . . . 1 . . . . 1 . . . . . . . . . . Repair Station Hacks 2 | . . . . . . . . . . . . . . . . . . . . 2 . . . . . Scan Component 1 | . . . . . . . . . . . . . . . . . . . . 1 . . . . . Repair 1 | . . . . . . . . . . . . . . . . . . . . 1 . . . . . Recycling Unit Hacks . | . . . . . . . . . . . . . . . . . . . . . . . . . . Scanalyzer 9 | . . . . 7 . . . . . 2 . . . . . . . . . . . . . . . Insert Component 4 | . . . . 3 . . . . . 1 . . . . . . . . . . . . . . . Analyze 5 | . . . . 4 . . . . . 1 . . . . . . . . . . . . . . . Garrison Access Hacks 2 | . . . . 1 . . . . . . . . . . . . . . . . . . . . 1 Seal Access 2 | . . . . 1 . . . . . . . . . . . . . . . . . . . . 1 Unauthorized Hacks 10 | . 2 1 . 4 1 . . . . 2 . . . . . . . . . . . . . . . Terminals 7 | . 2 1 . 4 . . . . . . . . . . . . . . . . . . . . . Track 1 | . . . . 1 . . . . . . . . . . . . . . . . . . . . . Assimilate 1 | . 1 . . . . . . . . . . . . . . . . . . . . . . . . Botnet 4 | . 1 1 . 2 . . . . . . . . . . . . . . . . . . . . . Disrupt 1 | . . . . 1 . . . . . . . . . . . . . . . . . . . . . Fabricators 1 | . . . . . . . . . . 1 . . . . . . . . . . . . . . . Prioritize 1 | . . . . . . . . . . 1 . . . . . . . . . . . . . . . Repair Stations . | . . . . . . . . . . . . . . . . . . . . . . . . . . Recycling Units 2 | . . . . . 1 . . . . 1 . . . . . . . . . . . . . . . Recyclers 2 | . . . . . 1 . . . . 1 . . . . . . . . . . . . . . . Scanalyzers . | . . . . . . . . . . . . . . . . . . . . . . . . . . Garrison Access . | . . . . . . . . . . . . . . . . . . . . . . . . . . Data Cores Recovered . | . . . . . . . . . . . . . . . . . . . . . . . . . . Used . | . . . . . . . . . . . . . . . . . . . . . . . . . . Hacking Detections 32 | . 3 2 . 6 10 . . . . 3 . . . . 4 . . . . 2 . . . . 2 Full Trace Events 8 | . 1 . . 1 5 . . . . . . . . . 1 . . . . . . . . . . Feedback Events 1 | . . . . . 1 . . . . . . . . . . . . . . . . . . . . Hackware Fried 1 | . . . . . 1 . . . . . . . . . . . . . . . . . . . . Feedback Blocked . | . . . . . . . . . . . . . . . . . . . . . . . . . . Robot Schematics Acquired 7 | . . . . . . . . 2 . . . . 5 . . . . . . . . . . . . Robots Built . | . . . . . . . . . . . . . . . . . . . . . . . . . . Authchips . | . . . . . . . . . . . . . . . . . . . . . . . . . . Time . | . . . . . . . . . . . . . . . . . . . . . . . . . . Total Robot Build Rating . | . . . . . . . . . . . . . . . . . . . . . . . . . . Part Schematics Acquired 30 | . . 1 . 3 . . . 16 . . . . 10 . . . . . . . . . . . . Parts Built 3 | . . . . . . . . . . 1 . . . . 2 . . . . . . . . . . Authchips 1 | . . . . . . . . . . . . . . . 1 . . . . . . . . . . Time 223 | . . . . . . . . . . 117 . . . . 106 . . . . . . . . . . Total Part Build Rating 19 | . . . . . . . . . . 7 . . . . 12 . . . . . . . . . . Parts Repaired 1 | . . . . . . . . . . . . . . . . . . . . 1 . . . . . Time 89 | . . . . . . . . . . . . . . . . . . . . 89 . . . . . Parts Recycled . | . . . . . . . . . . . . . . . . . . . . . . . . . . Recycled Matter . | . . . . . . . . . . . . . . . . . . . . . . . . . . Retrieved Matter . | . . . . . . . . . . . . . . . . . . . . . . . . . . Retrieved Components . | . . . . . . . . . . . . . . . . . . . . . . . . . . Parts Scanalyzed 4 | . . . . 3 . . . . . 1 . . . . . . . . . . . . . . . Part Schematics Acquired 3 | . . . . 3 . . . . . . . . . . . . . . . . . . . . . Parts Damaged . | . . . . . . . . . . . . . . . . . . . . . . . . . . Bothacking | -11 -10 -9 -9 -8 -7 -7 -7 -7 -6 -6 -6 -6 -6 -5 -5 -5 -5 -5 -4 -4 -4 -4 -4 -4 -3 ------------ Run | Scr Mat Mat Min Mat Fac Low Low Zio Pro Fac Low Low Dat Pro Fac Upp Upp War Pro Fac Ext Cet Arc Hub Res Used RIF Installer . | . . . . . . . . . . . . . . . . . . . . . . . . . . Robots Hacked 3 | . . . . . . . . . . . . . . . . . . . . . . . 3 . . Non-combat 2 | . . . . . . . . . . . . . . . . . . . . . . . 2 . . Combat 1 | . . . . . . . . . . . . . . . . . . . . . . . 1 . . Robot Hacks Applied 5 | . . . . . . . . . . . . . . . . . . . . . . . 5 . . parse_system 1 | . . . . . . . . . . . . . . . . . . . . . . . 1 . . check_alert 4 | . . . . . . . . . . . . . . . . . . . . . . . 4 . . Relay Couplers Released . | . . . . . . . . . . . . . . . . . . . . . . . . . . Fabnet Peak Effective % . | . . . . . . . . . . . . . . . . . . . . . . . . . . Robots Rewired 12 | . . . . . . 2 . . . . . . . . . . . . 2 . 8 . . . . Allies Hacked . | . . . . . . . . . . . . . . . . . . . . . . . . . . Hacks Repelled . | . . . . . . . . . . . . . . . . . . . . . . . . . . Allies | -11 -10 -9 -9 -8 -7 -7 -7 -7 -6 -6 -6 -6 -6 -5 -5 -5 -5 -5 -4 -4 -4 -4 -4 -4 -3 -------- Run | Scr Mat Mat Min Mat Fac Low Low Zio Pro Fac Low Low Dat Pro Fac Upp Upp War Pro Fac Ext Cet Arc Hub Res Total Allies 49 | . 1 . 3 . . 2 . 4 . 1 . . . 1 3 . . . 2 5 20 1 . 2 4 Largest Group 15 | . 1 . 3 3 . 2 2 4 4 1 . . . 1 2 . . . 2 5 15 4 3 4 3 Highest-Rated Group 894 | . 10 . 40 40 . 36 36 156 156 30 . . . 89 102 . . . 96 344 894 418 395 458 288 Highest-Rated Ally 167 | . 10 . 16 16 . 20 20 42 42 30 . . . 89 51 . . . 49 103 167 163 163 163 96 Zionite Dispatches 11 | . . . . . . . . . . 1 . . . . 3 . . . . 1 3 . . 1 2 Heavy 3 | . . . . . . . . . . . . . . . . . . . . 1 1 . . 1 . Light 1 | . . . . . . . . . . . . . . . . . . . . . . . . . 1 Recon 1 | . . . . . . . . . . . . . . . 1 . . . . . . . . . . Fire 1 | . . . . . . . . . . . . . . . . . . . . . 1 . . . . Hacker 1 | . . . . . . . . . . . . . . . 1 . . . . . . . . . . Hero 1 | . . . . . . . . . . . . . . . . . . . . . 1 . . . . Kinetic Resupply 1 | . . . . . . . . . . 1 . . . . . . . . . . . . . . . Explosive Resupply 1 | . . . . . . . . . . . . . . . 1 . . . . . . . . . . Infowar Resupply 1 | . . . . . . . . . . . . . . . . . . . . . . . . . 1 Total Orders 10 | . . . . . . . . . . 3 . . . . 2 . . . . 1 1 1 . . 2 ROAM 2 | . . . . . . . . . . 1 . . . . . . . . . . . . . . 1 DROP 3 | . . . . . . . . . . 1 . . . . 1 . . . . . . . . . 1 EXPLORE 1 | . . . . . . . . . . . . . . . 1 . . . . . . . . . . RETURN 4 | . . . . . . . . . . 1 . . . . . . . . . 1 1 1 . . . Ally Attacks 386 | . . . . 52 . . 3 . 18 . . . . 9 7 . . . . 45 101 41 9 66 35 Total Damage 15306 | . . . . 658 . . 48 . 310 . . . . 185 528 . . . . 1864 3945 1820 410 4301 1237 Kills 96 | . . . . 7 . . . . 1 . . . . 1 2 . . . . 11 27 12 4 25 6 Allies Corrupted 3 | . . . . . . . . . 1 . . . . . . . . . . 1 1 . . . . Allies Melted . | . . . . . . . . . . . . . . . . . . . . . . . . . . Intel | -11 -10 -9 -9 -8 -7 -7 -7 -7 -6 -6 -6 -6 -6 -5 -5 -5 -5 -5 -4 -4 -4 -4 -4 -4 -3 ------- Run | Scr Mat Mat Min Mat Fac Low Low Zio Pro Fac Low Low Dat Pro Fac Upp Upp War Pro Fac Ext Cet Arc Hub Res Robot Analysis Total 4 | . 2 2 . . . . . . . . . . . . . . . . . . . . . . . Derelict Logs Recovered 13 | . . . 1 . . 2 2 2 1 . 1 1 . . . 1 1 . 1 . . . . . . Drone Launches 6 | . . . . . . . . . . 1 . . . . 2 . . . . 1 1 1 . . . Drone Recoveries 5 | . . . . . . . . . . 1 . . . . 1 . . . . 1 1 1 . . . Decoded 0b10 Intel 359 | . . . . . . . . . . . . . . . 111 . . . . 49 45 . 1 26 127 Items 359 | . . . . . . . . . . . . . . . 111 . . . . 49 45 . 1 26 127 Zionite Intel Received 5 | . . . . . . . . . . 2 . . . . 1 . . . . . . . . . 2 Main Access 1 | . . . . . . . . . . 1 . . . . . . . . . . . . . . . Active Terminals 1 | . . . . . . . . . . . . . . . . . . . . . . . . . 1 Active Garrisons 1 | . . . . . . . . . . . . . . . . . . . . . . . . . 1 Depthwide Sectors/0 1 | . . . . . . . . . . . . . . . 1 . . . . . . . . . . Depthwide Sectors/-1 1 | . . . . . . . . . . 1 . . . . . . . . . . . . . . . Exploration | -11 -10 -9 -9 -8 -7 -7 -7 -7 -6 -6 -6 -6 -6 -5 -5 -5 -5 -5 -4 -4 -4 -4 -4 -4 -3 ------------- Run | Scr Mat Mat Min Mat Fac Low Low Zio Pro Fac Low Low Dat Pro Fac Upp Upp War Pro Fac Ext Cet Arc Hub Res Turns Passed 22889 | 35 954 826 554 1299 1616 855 631 1531 505 1176 363 529 122 414 2100 554 426 1731 1054 898 1206 333 840 359 1978 Spaces Moved 11622 | 36 457 366 335 654 875 379 363 969 303 638 197 279 77 215 1091 314 232 984 385 531 641 160 132 171 838 Core 107 | 36 68 . . . . . . . . . . . . . . . . . . . . . . . 3 Treads 6938 | . 389 366 335 654 875 379 363 969 303 289 . . . . . . . 9 385 112 221 160 132 171 826 Legs . | . . . . . . . . . . . . . . . . . . . . . . . . . . Wheels 4577 | . . . . . . . . . . 349 197 279 77 215 1091 314 232 975 . 419 420 . . . 9 Hover . | . . . . . . . . . . . . . . . . . . . . . . . . . . Flight . | . . . . . . . . . . . . . . . . . . . . . . . . . . Fastest Speed 50 | 50 100 160 160 160 155 156 156 156 156 156 160 160 160 160 160 160 160 160 166 145 145 162 162 162 50 Average Speed 164 | 79 183 181 160 160 159 202 162 156 156 158 160 160 160 160 160 160 160 161 245 149 160 162 162 162 158 Slowest Speed 246 | 100 240 240 160 160 160 235 235 156 156 160 160 160 160 160 175 160 160 246 246 205 162 163 163 245 237 Overloaded Moves . | . . . . . . . . . . . . . . . . . . . . . . . . . . Propulsion Burnouts . | . . . . . . . . . . . . . . . . . . . . . . . . . . Robots Hopped . | . . . . . . . . . . . . . . . . . . . . . . . . . . Cave-ins Triggered 1 | . . . . . . . . . . . . . . . . . . 1 . . . . . . . Exploration Rate (%) 49 | 3 80 34 86 42 27 49 54 86 49 16 36 42 69 44 35 38 38 87 61 14 88 72 82 28 29 Regions Visited 25 Branch Regions 17 Pre-discovered Areas 14 | . . . . . . . 1 . . 5 . 1 1 . 5 . 1 . . . . . . . . Known Exits Taken 9 | . . . . 1 1 1 . . 1 1 . . . 1 1 1 . . 1 . . . . . . Unknown Exits Taken 16 | 1 1 1 1 . . . 1 1 . . 1 1 1 . . . 1 1 . 1 1 1 1 1 . Scrap Searched 21 | . . . 1 . . 2 7 4 1 . . 2 . 2 . . 1 . 1 . . . . . . Spaces Dug 50 | . . . . . 2 . . . 3 . . 8 . . 13 . 1 11 . 3 . . . 1 8 Terrain Destroyed 789 | . . . . . 10 35 . . 3 . 29 8 . 19 14 . 25 29 68 6 11 5 . 176 351 Melee 22 | . . . . . 2 . . . 3 . . . . . 8 . . 1 . 3 . . . 1 4 Projectile 129 | . . . . . . . . . . . . 8 . . 6 . 5 26 25 3 11 5 . 5 35 AOE 638 | . . . . . 8 35 . . . . 29 . . 19 . . 20 2 43 . . . . 170 312 Terrain Rammed . | . . . . . . . . . . . . . . . . . . . . . . . . . . Walls Destroyed . | . . . . . . . . . . . . . . . . . . . . . . . . . . Machines Disabled . | . . . . . . . . . . . . . . . . . . . . . . . . . . Actions | -11 -10 -9 -9 -8 -7 -7 -7 -7 -6 -6 -6 -6 -6 -5 -5 -5 -5 -5 -4 -4 -4 -4 -4 -4 -3 --------- Run | Scr Mat Mat Min Mat Fac Low Low Zio Pro Fac Low Low Dat Pro Fac Upp Upp War Pro Fac Ext Cet Arc Hub Res Total 14261 | 41 523 462 346 796 1033 444 394 985 322 754 217 331 76 247 1312 338 257 1079 452 613 788 210 756 227 1258 Wait 1182 | . 7 34 8 37 62 8 11 5 8 37 . 21 . . 66 2 . 19 4 50 36 13 592 22 140 Move 11596 | 35 456 365 334 653 874 378 362 968 302 637 196 278 76 214 1090 313 231 982 384 530 640 159 131 170 838 Hop . | . . . . . . . . . . . . . . . . . . . . . . . . . . Pick Up 147 | 3 20 12 . 12 9 4 4 3 . 12 1 3 . 2 15 3 . 9 . 8 6 3 3 1 14 Fast Attach 64 | 3 . 3 . 1 3 2 2 . . 5 . . . . 7 . . 4 4 4 3 2 7 5 9 Attach 76 | . 5 2 . 4 9 4 2 . . 2 1 5 . 1 5 2 2 4 4 1 . 1 . . 22 Detach 20 | . . 2 . . . . 1 . . 2 . . . . 3 . . 2 2 . . . . . 8 Swap 146 | . 4 2 . 11 12 8 3 6 3 9 4 3 . 8 27 4 4 5 5 3 8 4 . 3 10 Drop 144 | . 5 8 . 18 9 1 2 2 1 12 . . . 1 22 . . 11 . 3 14 5 11 4 15 Fire 739 | . 26 34 4 60 53 18 7 . 5 38 15 21 . 21 68 14 20 37 27 8 29 23 5 18 188 Melee 56 | . . . . . 2 . . 1 3 . . . . . 9 . . 5 . 6 5 . 7 4 14 Ram . | . . . . . . . . . . . . . . . . . . . . . . . . . . Kick . | . . . . . . . . . . . . . . . . . . . . . . . . . . Crush . | . . . . . . . . . . . . . . . . . . . . . . . . . . Escape Stasis 1 | . . . . . . . . . . . . . . . . . . 1 . . . . . . . Rewire 90 | . . . . . . 21 . . . . . . . . . . . . 22 . 47 . . . . Trap . | . . . . . . . . . . . . . . . . . . . . . . . . . . Miscellaneous . | . . . . . . . . . . . . . . . . . . . . . . . . . . Route ------- -11/Scrapyard -10/Materials (discovered 3 exits: *Mat x2 / [*Min]) -9/Materials (discovered 2 exits: *Mat / [*Min]) -9/Mines (discovered 3 exits: *Mat x2 / [*Zio]) -8/Materials -7/Factory (discovered 5 exits: *Fac / *Sto x2 / *Low x2) -7/Lower Caves -7/Lower Caves -7/Zion -6/Proximity Caves -6/Factory (discovered 5 exits: Fac x4 / *Low) -6/Lower Caves -6/Lower Caves -6/Data Miner -5/Proximity Caves -5/Factory (discovered 4 exits: *Fac x2 / *Upp x2) -5/Upper Caves -5/Upper Caves (discovered 2 exits: Fac / *War) -5/Warlord -4/Proximity Caves -4/Factory (discovered 3 exits: *Res / [*Upp] / *Ext) -4/Extension (discovered 2 exits: *Res / *Cet) -4/Cetus (discovered 2 exits: *Res / [*Arc]) -4/Archives (discovered 3 exits: *Res / *Hub x2) -4/Hub_04(d) -3/Research (discovered 1 exit: Res) History --------- Turn | Location | Event 12 | -11/Scrapyard | Discovered new exit (range 15) 36 | -11/Scrapyard | Entered Materials 193 | -10/Materials | Discovered new exit (range 18) 193 | -10/Materials | Central database locked down 310 | -10/Materials | Build established: Mutant 603 | -10/Materials | Discovered new exit (range 4) 915 | -10/Materials | Discovered new exit (range 16) 990 | -10/Materials | Entered another Materials area 990 | -9/Materials | Evolved 2 slots: Propulsion x1, Utility x1 1302 | -9/Materials | Discovered new exit (range 15) 1785 | -9/Materials | Discovered new exit (range 10) 1798 | -9/Materials | Central database locked down 1816 | -9/Materials | Entered Mines 1824 | -9/Mines | Met a Derelict bent on vengeance 2005 | -9/Mines | A Derelict revealed a hidden shortcut to a safe place 2015 | -9/Mines | Discovered new exit (range 16) 2285 | -9/Mines | Assisted by bots powering up and referring to "LRC-V3" 2357 | -9/Mines | Discovered new exit (range 3) 2370 | -9/Mines | Entered Materials 2370 | -8/Materials | Accompanied by 3 allies 2370 | -8/Materials | Evolved 2 slots: Propulsion x1, Utility x1 2371 | -8/Materials | Identified exit to Factory 2659 | -8/Materials | Build established: Scavenger-Mutant 2953 | -8/Materials | Garrison activated, responded to threat 3669 | -8/Materials | Entered Factory 3669 | -7/Factory | Evolved 2 slots: Utility x1, Weapon x1 3767 | -7/Factory | Discovered new exit (range 6) 4180 | -7/Factory | Discovered new exit (range 16) 4207 | -7/Factory | Build established: Scavenger-Gunner 4506 | -7/Factory | Discovered new exit (range 16) 5178 | -7/Factory | Garrison activated, responded to threat 5249 | -7/Factory | Identified exit to Storage 5249 | -7/Factory | Identified exit to Lower Caves 5249 | -7/Factory | Hacking Suite fried by hacking feedback 5285 | -7/Factory | Entered Lower Caves 5305 | -7/Lower Caves | Identified exit to Lower Caves 5341 | -7/Lower Caves | Learned Factory terminal intel 5483 | -7/Lower Caves | Attracted the attention of an 0b10 checkpoint 5747 | -7/Lower Caves | Attracted the attention of an 0b10 outpost 5809 | -7/Lower Caves | Destroyed 10 combat bots 5814 | -7/Lower Caves | Lost 5 parts (1p2n1u1w) 6043 | -7/Lower Caves | Build established: Gunner 6140 | -7/Lower Caves | Entered another Lower Caves area 6140 | -7/Lower Caves | Accompanied by 2 allies 6158 | -7/Lower Caves | Learned 8 Factory zone layouts 6188 | -7/Lower Caves | Attracted the attention of an 0b10 checkpoint 6526 | -7/Lower Caves | Build established: Scavenger-Gunner 6571 | -7/Lower Caves | Encountered a Warlord checkpoint 6640 | -7/Lower Caves | Learned location of Zion (-7) 6687 | -7/Lower Caves | Discovered new exit (range 4) 6771 | -7/Lower Caves | Entered Zion 6831 | -7/Zion | System corruption cleaned by Quarantine Array 6868 | -7/Zion | Visited the Megawrench Repair Shop 6957 | -7/Zion | Discovered new exit (range 11) 7138 | -7/Zion | Learned Factory garrison access intel 7224 | -7/Zion | Given A8's code to call for help 7319 | -7/Zion | Learned Factory terminal intel 7330 | -7/Zion | Learned Factory emergency access door positions 7597 | -7/Zion | Build established: Scavenger-Mutant 7678 | -7/Zion | Given the Hacking Drone Bay 7682 | -7/Zion | Found Prototype Device 8003 | -7/Zion | Imprinted 8005 | -7/Zion | Declared Zion's savior 8245 | -7/Zion | Megawrench repaired 11 parts 8302 | -7/Zion | Entered Proximity Caves 8302 | -6/Proximity Caves | Accompanied by 4 allies 8424 | -6/Proximity Caves | Spotted B-75 Beast 8647 | -6/Proximity Caves | Identified exit to Factory 8666 | -6/Proximity Caves | Attracted the attention of an 0b10 checkpoint 8700 | -6/Proximity Caves | Build established: Scavenger-Gunner 8807 | -6/Proximity Caves | Entered Factory 8807 | -6/Factory | Evolved 2 slots: Power x1, Utility x1 8808 | -6/Factory | Identified exit to Lower Caves 8810 | -6/Factory | Loaded intel: 26 terminal locations 8811 | -6/Factory | Loaded intel: 4 garrison access locations 8927 | -6/Factory | Fabricated Adv. Transmission Jammer (x1) 9290 | -6/Factory | Identified Hacking Drone Bay 9334 | -6/Factory | Retrieved Zion intel report: Main Access 9334 | -6/Factory | Identified exit to Factory 9527 | -6/Factory | Retrieved Zion intel report: Depthwide Sectors/-1 9528 | -6/Factory | Zion Kinetic Resupply teleported in 9908 | -6/Factory | Build established: Gunner 9983 | -6/Factory | Entered Lower Caves 9996 | -6/Lower Caves | Encountered a Warlord checkpoint 10059 | -6/Lower Caves | Spotted B-75 Beast 10083 | -6/Lower Caves | Destroyed B-75 Beast 10129 | -6/Lower Caves | Learned location of 1 exit from Factory 10328 | -6/Lower Caves | Discovered new exit (range 3) 10346 | -6/Lower Caves | Entered another Lower Caves area 10438 | -6/Lower Caves | Build established: Mutant 10475 | -6/Lower Caves | Learned 8 Factory zone layouts 10732 | -6/Lower Caves | Lost 3 parts (3u) 10768 | -6/Lower Caves | Learned location of Armory (-3) 10768 | -6/Lower Caves | Learned 8 Factory zone layouts 10768 | -6/Lower Caves | Learned 8 Research zone layouts 10852 | -6/Lower Caves | Discovered new exit (range 8) 10875 | -6/Lower Caves | Entered Data Miner 10875 | -6/Data Miner | Discovered new exit (range 6) 10906 | -6/Data Miner | Met Data Miner 10939 | -6/Data Miner | Learned location of Section 7 (-2) 10939 | -6/Data Miner | Acquired the access code to Warlord's prototype stash 10962 | -6/Data Miner | Received God Mode back door access code from Data Miner 10997 | -6/Data Miner | Entered Proximity Caves 11069 | -5/Proximity Caves | Escorted by Enhanced Grunt 11386 | -5/Proximity Caves | Discovered exit to Factory (range 16) 11411 | -5/Proximity Caves | Entered Factory 11411 | -5/Factory | Evolved 2 slots: Utility x2 11412 | -5/Factory | Identified exit to Upper Caves 11413 | -5/Factory | Identified exit to Factory 11414 | -5/Factory | Loaded intel: 26 terminal locations 11663 | -5/Factory | Incoming investigation squad redirected 11736 | -5/Factory | Discovered exit to Upper Caves (range 6) 11782 | -5/Factory | Zion Hacker squad teleported in 12014 | -5/Factory | Zion Recon squad teleported in 12259 | -5/Factory | Retrieved Zion intel report: Depthwide Sectors/0 12315 | -5/Factory | Incoming investigation squad redirected 12435 | -5/Factory | Incoming investigation squad redirected 12447 | -5/Factory | Discovered exit to Factory (range 19) 12590 | -5/Factory | Build established: Skirmisher 12609 | -5/Factory | Garrison activated, responded to threat 12861 | -5/Factory | Zion Explosive Resupply teleported in 12879 | -5/Factory | Terminal network hard line cut 12917 | -5/Factory | Found Prototype Launcher 12917 | -5/Factory | Identified Gui. Missile Launcher 13109 | -5/Factory | Fabricated Arm. Medium Treads? 13214 | -5/Factory | Build established: Mutant 13511 | -5/Factory | First assault squad dispatched 13511 | -5/Factory | Entered Upper Caves 13841 | -5/Upper Caves | Identified exit to Upper Caves 14065 | -5/Upper Caves | Entered another Upper Caves area 14096 | -5/Upper Caves | Discovered exit to Factory (range 10) 14119 | -5/Upper Caves | Encountered a Warlord checkpoint 14407 | -5/Upper Caves | Discovered new exit (range 7) 14439 | -5/Upper Caves | Destroyed 8 combat bots 14471 | -5/Upper Caves | Lost 3 parts (1n2w) 14491 | -5/Upper Caves | Entered Warlord 14531 | -5/Warlord | Discovered new exit (range 14) 14727 | -5/Warlord | Found Prototype Special Weapon 14729 | -5/Warlord | Found Prototype Special Weapon 14732 | -5/Warlord | Found Prototype Special Weapon 14737 | -5/Warlord | Found Prototype Special Weapon 15278 | -5/Warlord | Warlord's base attacked by MAIN.C 15485 | -5/Warlord | Rebuked by Warlord 15500 | -5/Warlord | Opened Warlord's prototype stash 15508 | -5/Warlord | Found Prototype Device 15508 | -5/Warlord | Identified System Purifier 15512 | -5/Warlord | Found Prototype Processor 15512 | -5/Warlord | Identified Exp. Target Analyzer 15523 | -5/Warlord | Found Prototype Reactor 15628 | -5/Warlord | Warlord forces counterattacked 15703 | -5/Warlord | Spotted Executioner 15711 | -5/Warlord | Destroyed Executioner 15740 | -5/Warlord | Spotted Striker 15750 | -5/Warlord | Spotted Executioner 15789 | -5/Warlord | Identified RU-N14's Throwing Claymores v3 (x4) 15808 | -5/Warlord | Destroyed Executioner 15835 | -5/Warlord | Destroyed 7 combat bots 15953 | -5/Warlord | Warlord base infiltrated, sounded retreat 16036 | -5/Warlord | Spotted Executioner 16038 | -5/Warlord | Destroyed Executioner 16055 | -5/Warlord | Spotted Executioner 16057 | -5/Warlord | Spotted Striker 16059 | -5/Warlord | Spotted Striker 16066 | -5/Warlord | Destroyed Striker 16069 | -5/Warlord | Spotted Executioner 16070 | -5/Warlord | Spotted Executioner 16079 | -5/Warlord | Destroyed Executioner 16081 | -5/Warlord | Core integrity fell below 50% 16200 | -5/Warlord | Crushed by falling debris 16222 | -5/Warlord | Entered Proximity Caves 16254 | -4/Proximity Caves | Lost 3 parts (1n2u) 16682 | -4/Proximity Caves | Build established: Scavenger-Gunner 17096 | -4/Proximity Caves | Attracted the attention of an 0b10 outpost 17163 | -4/Proximity Caves | Destroyed 13 combat bots 17169 | -4/Proximity Caves | Discovered exit to Factory (range 16) 17259 | -4/Proximity Caves | Learned location of 1 exit from Research 17276 | -4/Proximity Caves | Entered Factory 17276 | -4/Factory | Accompanied by 2 allies 17276 | -4/Factory | Evolved 2 slots: Propulsion x2 17387 | -4/Factory | Discovered new exit (range 3) 17529 | -4/Factory | Discovered new exit (range 4) 17666 | -4/Factory | Zion Heavy squad teleported in 17762 | -4/Factory | Allied Derelicts emerged from ambush trap array 17851 | -4/Factory | Repaired Tri-rail Accelerator 17946 | -4/Factory | Build established: Mutant 18106 | -4/Factory | Discovered new exit (range 10) 18174 | -4/Factory | Entered Extension 18174 | -4/Extension | Accompanied by 1 ally 18225 | -4/Extension | Rescued a captive Derelict 18226 | -4/Extension | Rescued a captive Derelict 18489 | -4/Extension | Rescued a captive Derelict 18490 | -4/Extension | Rescued a captive Derelict 18575 | -4/Extension | Zion hero teleported in (P1-3CE) 18582 | -4/Extension | Zion Fire squad teleported in 18897 | -4/Extension | Spotted B-86 Titan 18914 | -4/Extension | Allies destroyed B-86 Titan 18923 | -4/Extension | Spotted B-86 Titan 18930 | -4/Extension | Destroyed B-86 Titan 18983 | -4/Extension | Build established: Commander-Mutant 18998 | -4/Extension | Zion Heavy squad teleported in 19174 | -4/Extension | First assault squad dispatched 19280 | -4/Extension | Rescued a captive Derelict 19306 | -4/Extension | Rescued A7 19356 | -4/Extension | Discovered new exit (range 10) 19357 | -4/Extension | Discovered new exit (range 6) 19380 | -4/Extension | Entered Cetus 19380 | -4/Cetus | Accompanied by 4 allies (incl. P1-3CE, A7) 19385 | -4/Cetus | Acquired a Cetus Manufacturing Module code from A7 19397 | -4/Cetus | Spotted Cetus Guard 19397 | -4/Cetus | Spotted Cetus Guard 19399 | -4/Cetus | Spotted Cetus Guard 19399 | -4/Cetus | Spotted Cetus Guard 19410 | -4/Cetus | Allies destroyed Cetus Guard 19412 | -4/Cetus | Allies destroyed Cetus Guard 19412 | -4/Cetus | Destroyed Cetus Guard 19417 | -4/Cetus | Allies destroyed Cetus Guard 19509 | -4/Cetus | Started Cetus Manufacturing Module 19534 | -4/Cetus | Manufactured an Enhanced Grunt 19541 | -4/Cetus | Cetus Manufacturing Module disabled 19544 | -4/Cetus | Build established: Scavenger-Mutant 19563 | -4/Cetus | Discovered new exit (range 22) 19602 | -4/Cetus | Spotted Cetus Guard 19602 | -4/Cetus | Spotted Cetus Guard 19605 | -4/Cetus | Destroyed Cetus Guard 19605 | -4/Cetus | Spotted Cetus Guard 19605 | -4/Cetus | Spotted Cetus Guard 19606 | -4/Cetus | Allies destroyed Cetus Guard 19611 | -4/Cetus | Destroyed Cetus Guard 19614 | -4/Cetus | Allies destroyed Cetus Guard 19622 | -4/Cetus | Discovered new exit (range 21) 19641 | -4/Cetus | Scared off Revision 17 19713 | -4/Cetus | Entered Archives 19713 | -4/Archives | Accompanied by 3 allies (incl. P1-3CE, A7) 19750 | -4/Archives | Discovered new exit (range 22) 19777 | -4/Archives | Discovered new exit (range 22) 19798 | -4/Archives | Discovered new exit (range 20) 20553 | -4/Archives | Entered Hub_04(d) 20553 | -4/Hub_04(d) | Accompanied by 2 allies (P1-3CE) 20586 | -4/Hub_04(d) | Discovered new exit (range 22) 20738 | -4/Hub_04(d) | Zion Heavy squad teleported in 20803 | -4/Hub_04(d) | First assault squad dispatched 20850 | -4/Hub_04(d) | Network Hub disabled 20850 | -4/Hub_04(d) | Garrison activated, responded to threat 20903 | -4/Hub_04(d) | Spotted Lightning 20912 | -4/Hub_04(d) | Spotted Lightning 20912 | -4/Hub_04(d) | Entered Research 20912 | -3/Research | Evolved 2 slots: Utility x2 20913 | -3/Research | Identified exit to Research 21049 | -3/Research | Retrieved Zion intel report: Active Terminals 21050 | -3/Research | Zion Light squad teleported in 21250 | -3/Research | Found Exp. Targeting Computer 21383 | -3/Research | Retrieved Zion intel report: Active Garrisons 21384 | -3/Research | Zion Infowar Resupply teleported in 21412 | -3/Research | First assault squad dispatched 22190 | -3/Research | Incoming assault squad redirected 22231 | -3/Research | Terminal network hard line cut 22403 | -3/Research | Identified Vortex Chain Reactor 22434 | -3/Research | Incoming assault squad redirected 22572 | -3/Research | Destroyed 8 combat bots 22609 | -3/Research | System corruption reached 10% 22659 | -3/Research | Build established: Mutant 22662 | -3/Research | High security lockdown imminent 22742 | -3/Research | High security lockdown engaged 22869 | -3/Research | Core integrity fell below 50% 22870 | -3/Research | Lost 13 parts (2p4n5u2w) 22879 | -3/Research | Spotted Investigator 22879 | -3/Research | Destroyed Investigator 22886 | -3/Research | Core integrity fell below 20% 22890 | -3/Research | Destroyed by G-73 Enforcer with Heavy Laser Last Messages --------------- 22882_ The unstable cave ceiling collapses. 22882_ Slug penetrates Earth. 22883_ G-67 Veteran destroyed. 22883_ H-77 Assassin destroyed. 22883_ P-80 Master destroyed. 22884_ Extracted 35 energy. 22884_ Slug penetrates Earth. 22885_ The unstable cave ceiling collapses. 22885_ RU-N14's Throwing Claymores v3 destroyed. 22885_ Dropped Huge Storage Unit. 22886_ Extracted 5 energy. 22886_ The unstable cave ceiling collapses. 22886_ Slug penetrates Earth. 22886_ Acquired Adv. Signal Interpreter. 22887_ The unstable cave ceiling collapses. 22887_ Slug penetrates Earth. 22888_ Acquired Machine Analyzer. 22889_ The unstable cave ceiling collapses. 22890_ Extracted 23 energy. [Achievement: Collector] Map ----- +----------------------------------------------------+ | | | | | | | | | | | | | | | | | | | | | | | | | | | | | | | ????????####???????????????#######???????????????? | | ???????? ?????????????# ####????????????? | | ????????!? ?????######## # ##???????????? | | ????!!?????? ! ??### # # #?????????=?? | | ???!!!???????? ?# = ????????????] | | !??!?!?????#+###i ## # ###???????????? | | ???????????# p%hh = ####???#????? | | ?????????????## = #?? | | ???